fUST/lending_fUST_20240212
["ID","MTS","AMOUNT","RATE_DAILY","PERIOD"]
[313798807,1707729168650,-500.0,0.00020473,2]
[313798808,1707729168675,-1112.1,0.00020473,2]
[313798809,1707729168700,-1774.44,0.00020473,2]
[313798810,1707729168724,-500.0,0.00020473,2]
[313798811,1707729168748,-500.0,0.00020473,2]
[313798812,1707729168771,-568.42,0.00020473,2]
[313798813,1707729168933,-775.45,0.00020473,2]
[313798814,1707729168957,-2730.97,0.00020473,2]
[313798815,1707729168981,-606.61,0.00020474,2]
[313798816,1707729169003,-500.0,0.00020474,2]
[313798817,1707729169026,-500.0,0.00020474,2]
[313798818,1707729184347,2027.5,0.00019925,2]
[313798819,1707729184614,2027.5,0.00020199,2]
[313798820,1707729184862,2027.5,0.00020473,2]
[313798821,1707729194654,500.0,0.00020472,2]
[313798822,1707729206217,500.0,0.00019925,2]
[313798823,1707729206457,500.0,0.00020199,2]
[313798824,1707729207050,500.0,0.00020473,2]
[313798825,1707729213317,500.0,0.00019925,2]
[313798826,1707729213590,500.0,0.00020199,2]
[313798827,1707729213890,500.0,0.00020473,2]
[313798828,1707729214351,973.09,0.00020472,2]
[313798830,1707729223041,1552.63,0.00020472,2]
[313798831,1707729225518,2092.52534233,0.00020472,2]
[313798832,1707729227910,300.0,0.00020472,2]
[313798836,1707729238384,500.0,0.00020472,2]
[313798837,1707729243518,2092.52534233,0.00020472,2]
[313798838,1707729243906,300.0,0.00020472,2]
[313798839,1707729245679,500.0,0.00020472,2]
[313798841,1707729246967,500.0,0.00020472,2]
[313798842,1707729249745,4020.3756192,0.00019829,2]
[313798857,1707729547742,-166.666666,0.00019232,2]
[313798858,1707729547765,-166.666666,0.00019756,2]
[313798859,1707729547788,-1448.0045014,0.00019829,2]
[313798860,1707729547812,-505.51,0.00019925,2]
[313798861,1707729547836,-500.0,0.00019925,2]
[313798862,1707729547860,-500.0,0.00019925,2]
[313798863,1707729547884,-742.04082584,0.0002,2]
[313798866,1707729599119,677.9357028,0.00019607,2]
[313798877,1707729896891,166.666666,0.00019273,2]
[313798878,1707729897076,166.666666,0.00019799,2]
[313798884,1707730087971,-742.04082584,0.00020323,2]
[313798885,1707730087995,-166.666666,0.00020324,2]
[313798897,1707730162530,300.0,0.00020324,2]
[313798898,1707730178523,300.0,0.00020324,2]
[313798908,1707730200136,2092.52534233,0.00020324,2]
[313798909,1707730200523,300.0,0.00020324,2]
[313798919,1707730218134,1251.9615595,0.00020324,2]
[313798920,1707730220521,300.0,0.00020324,2]
[313798937,1707730234922,-742.04082584,0.00020471,2]
[313798938,1707730234931,-500.0,0.00020472,2]
[313798940,1707730234940,-500.0,0.00020472,2]
[313798942,1707730234951,-197.00692111,0.00020472,2]
[313798944,1707730234962,-302.99307889,0.00020472,2]
[313798946,1707730234971,-500.0,0.00020472,2]
[313798948,1707730234980,-30.4514371,0.00020503,2]
[313799007,1707730239934,-200.09338183,0.00020503,2]
[313799009,1707730239943,-329.25968967,0.00020503,2]
[313799011,1707730239954,-422.99390547,0.00020503,2]
[313799013,1707730239963,-200.0423151,0.000207,2]
[313799015,1707730239972,-500.0,0.00020745,2]
[313799017,1707730239981,-500.0,0.00020745,2]
[313799019,1707730239991,-500.0,0.00020745,2]
[313799021,1707730240000,-500.0,0.00020745,2]
[313799023,1707730240009,-500.0,0.00020745,2]
[313799024,1707730240018,-500.0,0.00020745,2]
[313799026,1707730240028,-6.82199796,0.00020745,2]
[313799032,1707730240599,300.0,0.00020324,2]
[313799096,1707730241833,-925.72800204,0.00020745,2]
[313799098,1707730241842,-1487.94,0.00020745,2]
[313799101,1707730241852,-500.0,0.00020745,2]
[313799102,1707730241861,-500.0,0.00020745,2]
[313799104,1707730241870,-500.0,0.00020745,2]
[313799106,1707730241879,-572.53,0.00020745,2]
[313799108,1707730241888,-678.51,0.00020745,2]
[313799110,1707730241897,-500.0,0.00020746,2]
[313799112,1707730241906,-500.0,0.00020746,2]
[313799114,1707730241915,-500.0,0.00020746,2]
[313799116,1707730241924,-500.0,0.00020746,2]
[313799118,1707730241934,-3132.25,0.00020746,2]
[313799120,1707730241943,-5523.89,0.00020746,2]
[313799122,1707730241952,-579.92,0.00020746,2]
[313799124,1707730241961,-500.0,0.00020746,2]
[313799126,1707730241970,-549.65,0.00020746,2]
[313799128,1707730241979,-500.0,0.00020746,2]
[313799130,1707730241988,-154.1096726,0.000208,2]
[313799132,1707730241997,-308.5108259,0.000208,2]
[313799134,1707730242006,-199.422617,0.000208,2]
[313799136,1707730242015,-153.0,0.000208,2]
[313799138,1707730242023,-153.0,0.000208,2]
[313799140,1707730242032,-153.0,0.000208,2]
[313799142,1707730242041,-166.666666,0.0002085,2]
[313799144,1707730242050,-1000.0,0.00021,21]
[313799146,1707730242059,-3182.37,0.00021018,2]
[313799148,1707730242068,-520.76,0.00021019,2]
[313799150,1707730242078,-500.0,0.00021019,2]
[313799152,1707730242090,-500.0,0.00021019,2]
[313799154,1707730242098,-500.0,0.00021019,2]
[313799156,1707730242107,-500.0,0.00021019,2]
[313799158,1707730242116,-354.29,0.00021019,2]
[313799160,1707730242126,-58.99737958,0.00021019,2]
[313799493,1707730245326,-500.0,0.00020745,2]
[313799494,1707730245335,-441.00262042,0.00021019,2]
[313799495,1707730245345,-932.55,0.00021019,2]
[313799496,1707730245354,-1487.94,0.00021019,2]
[313799498,1707730245363,-1484.58296106,0.00021019,2]
[313799597,1707730247796,-905.01703894,0.00021019,2]
[313799599,1707730247805,-500.0,0.00021019,2]
[313799601,1707730247814,-1774.06,0.00021019,2]
[313799603,1707730247823,-334.69,0.00021019,2]
[313799605,1707730247832,-678.51,0.00021019,2]
[313799607,1707730247842,-500.0,0.00021019,2]
[313799609,1707730247851,-500.0,0.0002102,2]
[313799611,1707730247860,-500.0,0.0002102,2]
[313799613,1707730247869,-500.0,0.0002102,2]
[313799615,1707730247878,-500.0,0.0002102,2]
[313799617,1707730247887,-3132.25,0.0002102,2]
[313799619,1707730247896,-500.0,0.0002102,2]
[313799621,1707730247905,-549.65,0.0002102,2]
[313799623,1707730247914,-500.0,0.0002102,2]
[313799625,1707730247923,-3182.37,0.00021292,2]
[313799627,1707730247932,-500.0,0.00021293,2]
[313799629,1707730247941,-500.0,0.00021293,2]
[313799631,1707730247950,-500.0,0.00021293,2]
[313799633,1707730247961,-500.0,0.00021293,2]
[313799635,1707730247969,-932.55,0.00021293,2]
[313799637,1707730247978,-1487.94,0.00021293,2]
[313799639,1707730247987,-2389.6,0.00021293,2]
[313799641,1707730247996,-500.0,0.00021293,2]
[313799643,1707730248005,-1774.06,0.00021293,2]
[313799645,1707730248014,-678.51,0.00021293,2]
[313799647,1707730248023,-500.0,0.00021293,2]
[313799649,1707730248032,-500.0,0.00021294,2]
[313799651,1707730248041,-500.0,0.00021294,2]
[313799653,1707730248050,-500.0,0.00021294,2]
[313799655,1707730248060,-500.0,0.00021294,2]
[313799657,1707730248069,-3132.25,0.00021294,2]
[313799659,1707730248081,-221.48018055,0.00021294,2]
[313799661,1707730248092,-549.65,0.00021294,2]
[313799663,1707730248101,-500.0,0.00021294,2]
[313799665,1707730248110,-1000.0,0.00021309,2]
[313799667,1707730248119,-1000.0,0.00021314,2]
[313799669,1707730248128,-1000.0,0.00021323,2]
[313799671,1707730248137,-166.666666,0.00021375,2]
[313799673,1707730248146,-1590.02146744,0.00021478,9]
[313799675,1707730248155,-200.0,0.00021495,7]
[313799677,1707730248166,-5445.04037998,0.000215,3]
[313799679,1707730248176,-3182.37,0.00021566,2]
[313799681,1707730248185,-500.0,0.00021567,2]
[313799683,1707730248195,-500.0,0.00021567,2]
[313799685,1707730248204,-500.0,0.00021567,2]
[313799687,1707730248214,-500.0,0.00021567,2]
[313799689,1707730248223,-932.55,0.00021567,2]
[313799691,1707730248233,-1487.94,0.00021567,2]
[313799693,1707730248242,-2389.6,0.00021567,2]
[313799695,1707730248250,-500.0,0.00021567,2]
[313799697,1707730248260,-1774.06,0.00021567,2]
[313799699,1707730248269,-678.51,0.00021567,2]
[313799701,1707730248278,-500.0,0.00021567,2]
[313799703,1707730248288,-500.0,0.00021568,2]
[313799705,1707730248297,-500.0,0.00021568,2]
[313799707,1707730248306,-500.0,0.00021568,2]
[313799709,1707730248315,-500.0,0.00021568,2]
[313799711,1707730248324,-3132.25,0.00021568,2]
[313799713,1707730248333,-549.65,0.00021568,2]
[313799715,1707730248342,-500.0,0.00021568,2]
[313799717,1707730248351,-370.0,0.000217,9]
[313799719,1707730248360,-3182.37,0.0002184,2]
[313799721,1707730248369,-1755.88485086,0.0002184,2]
[313799723,1707730248378,-375.42230591,0.0002184,2]
[313799725,1707730248387,-500.0,0.0002184,2]
[313799727,1707730248396,-500.0,0.0002184,2]
[313799729,1707730248405,-244.44,0.0002184,2]
[313799731,1707730248413,-500.0,0.0002184,2]
[313799733,1707730248422,-1755.88485086,0.0002184,2]
[313799735,1707730248432,-563.22654794,0.0002184,2]
[313799737,1707730248440,-1755.88485086,0.0002184,2]
[313799739,1707730248449,-500.0,0.0002184,2]
[313799741,1707730248458,-500.0,0.0002184,2]
[313799743,1707730248467,-500.0,0.0002184,2]
[313799745,1707730248476,-1755.88485086,0.0002184,2]
[313799747,1707730248485,-1755.88485086,0.0002184,2]
[313799749,1707730248494,-264.40802759,0.0002184,2]
[313799751,1707730248504,-1755.88485086,0.0002184,2]
[313799752,1707730248513,-493.31047473,0.0002184,2]
[313799753,1707730248522,-500.0,0.0002184,2]
[313799754,1707730248532,-1755.88485086,0.0002184,2]
[313799755,1707730248541,-500.0,0.0002184,2]
[313799756,1707730248550,-1755.88485086,0.0002184,2]
[313799757,1707730248559,-500.0,0.0002184,2]
[313799758,1707730248568,-500.0,0.0002184,2]
[313799759,1707730248577,-1755.88485086,0.0002184,2]
[313799760,1707730248586,-358.77419474,0.0002184,2]
[313799761,1707730248595,-1755.88485086,0.0002184,2]
[313799762,1707730248604,-1755.88485086,0.0002184,2]
[313799763,1707730248613,-500.0,0.0002184,2]
[313799764,1707730248621,-500.0,0.0002184,2]
[313799765,1707730248630,-1755.88485086,0.0002184,2]
[313799766,1707730248640,-1755.88485086,0.0002184,2]
[313799767,1707730248649,-1755.88485086,0.0002184,2]
[313799768,1707730248658,-1755.88485086,0.0002184,2]
[313799769,1707730248667,-1755.88485086,0.0002184,2]
[313799770,1707730248676,-1755.88485086,0.0002184,2]
[313799771,1707730248686,-1755.88485086,0.0002184,2]
[313799772,1707730248695,-1755.88485086,0.0002184,2]
[313799773,1707730248704,-1755.88485086,0.0002184,2]
[313799775,1707730248713,-1755.88485086,0.0002184,2]
[313799777,1707730248722,-1755.88485086,0.0002184,2]
[313799779,1707730248731,-1755.88485086,0.0002184,2]
[313799781,1707730248740,-1755.88485086,0.0002184,2]
[313799783,1707730248749,-1755.88485086,0.0002184,2]
[313799785,1707730248758,-1755.88485086,0.0002184,2]
[313799787,1707730248767,-1755.88485086,0.0002184,2]
[313799789,1707730248776,-1755.88485086,0.0002184,2]
[313799791,1707730248785,-1755.88485086,0.0002184,2]
[313799793,1707730248794,-1755.88485086,0.0002184,2]
[313799795,1707730248803,-1755.88485086,0.0002184,2]
[313799797,1707730248812,-1625.25405742,0.0002184,2]
[313799800,1707730248825,-130.63079344,0.0002184,2]
[313799802,1707730248834,-251.43788418,0.0002184,2]
[313799967,1707730255346,405.52945562,0.00020324,2]
[313799968,1707730259264,1684.99178932,0.00020372,2]
[313799970,1707730268156,186.06886583,0.00020371,2]
[313799971,1707730277460,154.8915759,0.00019654,3]
[313799989,1707730380383,166.666666,0.00019851,2]
[313799990,1707730380556,166.666666,0.00020392,2]
[313799993,1707730435050,300.0,0.00020392,2]
[313799995,1707730453056,300.0,0.00020392,2]
[313799996,1707730473047,300.0,0.00020392,2]
[313799997,1707730497048,300.0,0.00020392,2]
[313799999,1707730519055,300.0,0.00020392,2]
[313800001,1707730537060,257.14162528,0.00020392,2]
[313800088,1707730884754,166.666666,0.00019696,2]
[313800089,1707730884959,166.666666,0.00020233,2]
[313800112,1707731342203,166.666666,0.00019762,2]
[313800113,1707731342404,166.666666,0.000203,2]
[313800198,1707731437861,-742.04082584,0.00020402,2]
[313800200,1707731437870,-314.7436785,0.00020403,2]
[313800202,1707731437879,-756.50399665,0.00020503,2]
[313800204,1707731437888,-210.82632818,0.00020503,2]
[313800206,1707731437897,-166.666666,0.00020839,2]
[313800207,1707731437906,-261.98617996,0.00021017,2]
[313800209,1707731437915,-500.0,0.00021018,2]
[313800211,1707731437924,-500.0,0.00021018,2]
[313800213,1707731437933,-500.0,0.00021018,2]
[313800215,1707731437942,-500.0,0.00021018,2]
[313800217,1707731437951,-500.0,0.00021018,2]
[313800220,1707731437960,-153.90585741,0.00021197,2]
[313800223,1707731437969,-219.0042556,0.00021232,2]
[313800226,1707731437978,-500.0,0.00021291,2]
[313800229,1707731437987,-500.0,0.00021291,2]
[313800232,1707731437996,-2234.46112473,0.00021291,2]
[313800790,1707731442858,-3059.26887527,0.00021291,2]
[313800792,1707731442867,-2773.89,0.00021291,2]
[313800794,1707731442876,-500.0,0.00021291,2]
[313800796,1707731442885,-1844.28012836,0.00021291,2]
[313801192,1707731449339,-233.853375,0.00020665,2]
[313801193,1707731449348,-694.26987164,0.00021291,2]
[313801194,1707731449358,-500.0,0.00021291,2]
[313801195,1707731449366,-509.15218481,0.00021291,2]
[313801196,1707731449375,-500.0,0.00021291,2]
[313801197,1707731449384,-1888.48,0.00021291,2]
[313801198,1707731449393,-864.53,0.00021291,2]
[313801199,1707731449402,-1535.36959605,0.00021291,2]
[313801202,1707731449537,-28.87040395,0.00021291,2]
[313801203,1707731449546,-500.0,0.00021291,2]
[313801204,1707731449556,-500.0,0.00021291,2]
[313801205,1707731449565,-2829.62,0.00021291,2]
[313801206,1707731449574,-211.879265,0.00021291,2]
[313801207,1707731449583,-500.0,0.00021291,2]
[313801208,1707731449592,-500.0,0.00021291,2]
[313801209,1707731449600,-500.0,0.00021291,2]
[313801210,1707731449609,-500.0,0.00021291,2]
[313801211,1707731449618,-500.0,0.00021291,2]
[313801212,1707731449628,-500.0,0.00021291,2]
[313801213,1707731449638,-500.0,0.00021291,2]
[313801214,1707731449647,-500.0,0.00021291,2]
[313801215,1707731449656,-643.67,0.00021291,2]
[313801216,1707731449665,-500.0,0.00021291,2]
[313801217,1707731449674,-500.0,0.00021291,2]
[313801218,1707731449683,-500.0,0.00021292,2]
[313801219,1707731449692,-500.0,0.00021292,2]
[313801220,1707731449701,-500.0,0.00021292,2]
[313801221,1707731449710,-500.0,0.00021292,2]
[313801222,1707731449719,-166.666666,0.00021378,2]
[313801223,1707731449729,-5293.73,0.00021565,2]
[313801224,1707731449738,-2773.89,0.00021565,2]
[313801225,1707731449747,-500.0,0.00021565,2]
[313801226,1707731449756,-2538.55,0.00021565,2]
[313801227,1707731449765,-329.15117757,0.00021565,2]
[313801228,1707731449775,-1888.48,0.00021565,2]
[313801229,1707731449784,-864.53,0.00021565,2]
[313801230,1707731449793,-1564.24,0.00021565,2]
[313801231,1707731449802,-500.0,0.00021565,2]
[313801233,1707731449925,-500.0,0.00021565,2]
[313801234,1707731449936,-2829.62,0.00021565,2]
[313801235,1707731449945,-500.0,0.00021565,2]
[313801236,1707731449954,-500.0,0.00021565,2]
[313801237,1707731449963,-500.0,0.00021565,2]
[313801238,1707731449972,-500.0,0.00021565,2]
[313801239,1707731449981,-643.67,0.00021565,2]
[313801240,1707731449990,-500.0,0.00021565,2]
[313801241,1707731449999,-500.0,0.00021565,2]
[313801242,1707731450008,-500.0,0.00021566,2]
[313801243,1707731450020,-500.0,0.00021566,2]
[313801244,1707731450029,-500.0,0.00021566,2]
[313801245,1707731450037,-500.0,0.00021566,2]
[313801246,1707731450046,-352.0,0.000217,9]
[313801247,1707731450056,-4980.49,0.0002182,3]
[313801248,1707731450065,-1168.624785,0.0002183,2]
[313801249,1707731450074,-340.35850533,0.0002183,2]
[313801250,1707731450083,-1168.624785,0.0002183,2]
[313801251,1707731450092,-1168.624785,0.0002183,2]
[313801252,1707731450101,-1168.624785,0.0002183,2]
[313801253,1707731450111,-1168.624785,0.0002183,2]
[313801254,1707731450120,-1168.624785,0.0002183,2]
[313801255,1707731450129,-1168.624785,0.0002183,2]
[313801256,1707731450139,-1168.624785,0.0002183,2]
[313801257,1707731450149,-1168.624785,0.0002183,2]
[313801258,1707731450158,-1168.624785,0.0002183,2]
[313801259,1707731450168,-1168.624785,0.0002183,2]
[313801260,1707731450178,-1168.624785,0.0002183,2]
[313801261,1707731450188,-1168.624785,0.0002183,2]
[313801262,1707731450197,-1168.624785,0.0002183,2]
[313801263,1707731450207,-1168.624785,0.0002183,2]
[313801264,1707731450218,-1168.624785,0.0002183,2]
[313801265,1707731450228,-1168.624785,0.0002183,2]
[313801266,1707731450237,-1168.624785,0.0002183,2]
[313801267,1707731450247,-1168.624785,0.0002183,2]
[313801268,1707731450257,-1168.624785,0.0002183,2]
[313801269,1707731450267,-1168.624785,0.0002183,2]
[313801270,1707731450277,-1168.624785,0.0002183,2]
[313801271,1707731450287,-1168.624785,0.0002183,2]
[313801272,1707731450297,-1168.624785,0.0002183,2]
[313801273,1707731450307,-1168.624785,0.0002183,2]
[313801274,1707731450317,-1168.624785,0.0002183,2]
[313801275,1707731450326,-1168.624785,0.0002183,2]
[313801276,1707731450336,-1168.624785,0.0002183,2]
[313801277,1707731450345,-1168.624785,0.0002183,2]
[313801278,1707731450355,-1168.624785,0.0002183,2]
[313801279,1707731450364,-1168.624785,0.0002183,2]
[313801280,1707731450374,-1168.624785,0.0002183,2]
[313801281,1707731450383,-1168.624785,0.0002183,2]
[313801282,1707731450393,-1168.624785,0.0002183,2]
[313801283,1707731450402,-1168.624785,0.0002183,2]
[313801285,1707731450412,-1168.624785,0.0002183,2]
[313801287,1707731450422,-1168.624785,0.0002183,2]
[313801289,1707731450431,-1168.624785,0.0002183,2]
[313801291,1707731450441,-1168.624785,0.0002183,2]
[313801293,1707731450456,-1168.624785,0.0002183,2]
[313801295,1707731450466,-1168.624785,0.0002183,2]
[313801297,1707731450475,-1168.624785,0.0002183,2]
[313801298,1707731450485,-1168.624785,0.0002183,2]
[313801300,1707731450495,-165.92338608,0.0002183,2]
[313801302,1707731450504,-1168.624785,0.0002183,2]
[313801304,1707731450514,-1168.624785,0.0002183,2]
[313801306,1707731450524,-1168.624785,0.0002183,2]
[313801308,1707731450536,-1168.624785,0.0002183,2]
[313801310,1707731450545,-1168.624785,0.0002183,2]
[313801312,1707731450554,-1168.624785,0.0002183,2]
[313801314,1707731450563,-1168.624785,0.0002183,2]
[313801315,1707731450573,-1168.624785,0.0002183,2]
[313801317,1707731450582,-1168.624785,0.0002183,2]
[313801320,1707731450592,-1168.624785,0.0002183,2]
[313801322,1707731450602,-1168.624785,0.0002183,2]
[313801323,1707731450611,-1168.624785,0.0002183,2]
[313801326,1707731450620,-1168.624785,0.0002183,2]
[313801327,1707731450630,-1168.62478501,0.0002183,2]
[313801329,1707731450640,-1168.624785,0.0002183,2]
[313801331,1707731450652,-1168.624785,0.0002183,2]
[313801333,1707731450662,-1168.624785,0.0002183,2]
[313801336,1707731450673,-1168.624785,0.0002183,2]
[313801338,1707731450683,-1168.624785,0.0002183,2]
[313801339,1707731450693,-843.12436357,0.0002183,2]
[313801342,1707731450706,-325.50042143,0.0002183,2]
[313801344,1707731450715,-1168.624785,0.0002183,2]
[313801346,1707731450725,-1168.624785,0.0002183,2]
[313801348,1707731450734,-1168.624785,0.0002183,2]
[313801349,1707731450744,-1168.624785,0.0002183,2]
[313801351,1707731450753,-1168.624785,0.0002183,2]
[313801352,1707731450762,-1168.624785,0.0002183,2]
[313801353,1707731450772,-1168.624785,0.0002183,2]
[313801354,1707731450782,-307.15644751,0.0002183,2]
[313801355,1707731450791,-151.0,0.00021831,2]
[313801356,1707731450801,-151.0,0.00021832,2]
[313801357,1707731450810,-151.0,0.00021832,2]
[313801358,1707731450820,-151.0,0.00021832,2]
[313801359,1707731450829,-206.486958,0.00021835,2]
[313801360,1707731450839,-1469.16118422,0.00021839,2]
[313801361,1707731450848,-232.0383969,0.00021839,2]
[313801401,1707731485867,1114.25679546,0.00019645,2]
[313801403,1707731511164,154.90705577,0.0002,2]
[313801404,1707731531380,88593.51034498,0.00020612,2]
[313801405,1707731535144,155.30233651,0.0002,2]
[313801413,1707731626681,173.058586,0.0002056,2]
[313801417,1707731740529,24900.0,0.00020707,2]
[313801420,1707731809962,166.666666,0.00020373,2]
[313801421,1707731810172,166.666666,0.00020929,2]
[313801429,1707731917590,843.192541,0.00020503,2]
[313801435,1707731983958,154.93802479,0.0001916,3]
[313801436,1707731991840,1112.04050665,0.0001916,2]
[313801437,1707731995532,8562.10459303,0.00020503,2]
[313801439,1707732004724,154.93802479,0.00020503,2]
[313801440,1707732007599,155.38291712,0.00020503,2]
[313801441,1707732009792,980.85999752,0.0001916,2]
[313801442,1707732020679,155.95249085,0.00020503,2]
[313801445,1707732025239,10000.0,0.00020503,2]
[313801446,1707732043224,440.98595317,0.0001916,2]
[313801451,1707732102355,214.738097,0.00020443,2]
[313801459,1707732277635,334.0,0.00021,9]
[313801462,1707732311513,166.666666,0.00020095,2]
[313801463,1707732311715,166.666666,0.00020643,2]
[313801467,1707732365994,10000.0,0.00021,10]
[313801468,1707732372199,10000.0,0.00021,10]
[313801469,1707732377835,10000.0,0.00021,10]
[313801470,1707732384335,10000.0,0.00021,10]
[313801471,1707732391223,5151.1896757,0.00021,10]
[313801474,1707732399184,4845.1084241,0.00015,10]
[313801475,1707732399216,5154.8915759,0.00015,10]
[313801476,1707732405159,10000.0,0.00015,10]
[313801477,1707732411806,10000.0,0.00015,10]
[313801478,1707732418251,10000.0,0.00015,10]
[313801479,1707732425872,9845.1084241,0.000171,2]
[313801482,1707732437373,10000.0,0.00017,2]
[313801483,1707732443861,10000.0,0.00017,2]
[313801484,1707732450888,10000.0,0.00017,2]
[313801485,1707732465982,10000.0,0.00017,2]
[313801487,1707732473509,10000.0,0.00017,2]
[313801489,1707732476491,154.9690062,0.00015274,2]
[313801490,1707732479281,10000.0,0.00017,2]
[313801491,1707732485788,10000.0,0.00017,2]
[313801492,1707732496689,298.98509358,0.00015274,2]
[313801574,1707732632166,-718.64688847,0.00017099,2]
[313801578,1707732632176,-10.28938995,0.000171,2]
[313801945,1707732638073,-144.60218595,0.000171,2]
[313801947,1707732638082,-1409.50322581,0.000171,2]
[313801949,1707732638093,-1235.40286707,0.000171,2]
[313801951,1707732638104,-1422.72291384,0.000171,2]
[313801953,1707732638115,-5932.37099328,0.000171,2]
[313801955,1707732638125,-200.0,0.00017954,2]
[313801957,1707732638134,-280.0,0.00019749,2]
[313801959,1707732638143,-649.00119694,0.00020366,2]
[313801961,1707732638153,-2621.00386489,0.00020366,2]
[313801964,1707732638162,-4552.81442206,0.00020367,2]
[313802316,1707732641529,-5296.56455677,0.00020367,2]
[313802734,1707732646049,-483.72217898,0.00020366,2]
[313802735,1707732646059,-12150.62102117,0.00020367,2]
[313802737,1707732646069,-4848.8103243,0.00021,10]
[313802739,1707732646078,-1000.0,0.00021157,2]
[313802741,1707732646088,-432.20816892,0.00021157,2]
[313802743,1707732646098,-410.2397812,0.00021157,2]
[313802745,1707732646107,-2907.73410019,0.00021157,2]
[313802747,1707732646117,-166.666666,0.00021191,2]
[313802749,1707732646127,-155.13342296,0.00021289,2]
[313802751,1707732646136,-1758.29553482,0.00021289,3]
[313802753,1707732646145,-1032.36645246,0.0002129,3]
[313802755,1707732646155,-500.0,0.00021291,2]
[313802757,1707732646164,-426.30316685,0.00021291,2]
[313802759,1707732646173,-500.0,0.00021291,2]
[313802761,1707732646182,-500.0,0.00021291,2]
[313802763,1707732646191,-500.0,0.00021291,2]
[313802765,1707732646200,-500.0,0.00021291,2]
[313802767,1707732646209,-500.0,0.00021291,2]
[313802769,1707732646219,-154.68785266,0.00021463,2]
[313802771,1707732646228,-3778.6226022,0.000215,5]
[313802773,1707732646237,-2208.81,0.00021553,3]
[313802775,1707732646246,-3782.27,0.00021553,3]
[313802778,1707732646257,-3151.9,0.00021553,3]
[313802780,1707732646267,-2626.58,0.00021553,3]
[313802782,1707732646275,-500.0,0.00021563,2]
[313802784,1707732646284,-500.0,0.00021563,2]
[313802786,1707732646294,-500.0,0.00021563,2]
[313802788,1707732646303,-5961.98,0.00021563,2]
[313802789,1707732646312,-500.0,0.00021563,2]
[313802792,1707732646322,-500.0,0.00021563,2]
[313802794,1707732646331,-500.0,0.00021563,2]
[313802795,1707732646340,-3293.71,0.00021563,2]
[313802797,1707732646350,-500.0,0.00021563,2]
[313802800,1707732646359,-500.0,0.00021563,2]
[313802801,1707732646369,-500.0,0.00021563,2]
[313802804,1707732646378,-500.0,0.00021563,2]
[313802805,1707732646387,-500.0,0.00021563,2]
[313802807,1707732646396,-917.61,0.00021563,2]
[313802810,1707732646406,-1703.16,0.00021563,2]
[313802812,1707732646415,-500.0,0.00021563,2]
[313802813,1707732646425,-608.03,0.00021563,2]
[313802816,1707732646434,-500.0,0.00021563,2]
[313802817,1707732646443,-514.22029788,0.00021563,2]
[313802819,1707732646453,-500.0,0.00021563,2]
[313802821,1707732646462,-568.07,0.00021563,2]
[313802824,1707732646471,-500.0,0.00021563,2]
[313802826,1707732646481,-500.0,0.00021563,2]
[313802828,1707732646489,-500.0,0.00021563,2]
[313802829,1707732646499,-500.0,0.00021563,2]
[313802831,1707732646508,-500.0,0.00021564,2]
[313802834,1707732646518,-500.0,0.00021564,2]
[313802836,1707732646527,-548.67,0.00021564,2]
[313802837,1707732646537,-500.0,0.00021564,2]
[313802839,1707732646546,-500.0,0.00021564,2]
[313802842,1707732646555,-500.0,0.00021564,2]